Cogmind - Beta 16 @@@ ROGUE MODE // 2025.12.04 @ 10:55:14 Player: Torako Result: Destroyed by G-50 Soldier with Heavy Laser Performance ------------- Evolutions (5) 2500 Regions Visited (17) 3400 Robots Destroyed (98) 490 Value Destroyed (3776) 3776 Prototype IDs (35) 700 Alien Tech Used (0) 0 Bonus (4596) 4596 TOTAL SCORE: 15462 Bonus ------- High Alert Combat Kills 16 Follower Combat Kills 941 Subatomizer Sterilization 3000 Met Data Miner 300 Met Imprinter 300 Was Imprinted 300 Friendly Fire -261 Cogmind --------- Core Integrity 0/1000 Matter 136/300 Energy 19/100 System Corruption 73% Temperature Cool (9) Movement Core (50) Location -5/Factory Parts ------- > --- POWER (1) -------- (None) > --- PROPULSION (4) --- (None) > --- UTILITY (9) ------ (None) > --- WEAPON (3) ------- (None) > --- INVENTORY (5) ---- Compact Matter Pod (150) Gun Armor RU-N14's Throwing Claymores (2) Peak State ------------ > --- POWER ------------ Antimatter Reactor > --- PROPULSION ------- Armored Treads Improved Medium Treads Heavy Treads > --- UTILITY ---------- Advanced Cooling System High-capacity Storage Unit Enhanced Optical Array Experimental Sensor Array Improved Signal Interpreter Advanced Targeting Computer Core Analyzer Hardened Medium Armor Plating Improved Medium Armor Plating > --- WEAPON ----------- Enhanced Quantum Rifle Phase Cannon Gauss Rifle > --- INVENTORY -------- Micro Nuclear Core Light Angular Momentum Engine Armored Treads Advanced Treads Advanced Treads Compact Matter Pod Stasis Canceller Improved Medium Armor Plating Gun Armor Hacking Drone Bay V3-11A's Pendant Long-range Proton Cannon Plasma Cannon Advanced EMP Blaster Rocket Launcher RU-N14's Throwing Claymores RU-N14's Throwing Claymores RU-N14's Throwing Claymores RU-N14's Throwing Claymores CR-A16's Pointy Stick [Rating: 92] Favorites ----------- Power Enhanced Nuclear Core Engine Light Angular Momentum Engine Power Core Enhanced Nuclear Core Reactor Antimatter Reactor Propulsion Advanced Treads Treads Advanced Treads Leg Aluminum Leg Wheel Subdweller Monowheel Utility High-capacity Storage Unit Device Experimental Sensor Array Storage High-capacity Storage Unit Processor Improved Signal Interpreter Hackware Makeshift Hacking Suite Protection Hardened Medium Armor Plating Weapon Gauss Rifle Energy Gun Precision Shock Rifle Energy Cannon Phase Cannon Ballistic Gun Gauss Rifle Ballistic Cannon Assault Cannon Launcher Advanced EMP Blaster Special Weapon RU-N14's Throwing Claymores Piercing Weapon CR-A16's Pointy Stick Build | -11 -10 -10 -10 -8 -7 -7 -7 -7 -6 -6 -6 -6 -6 -5 -5 -5 -5 ------- Run | Yrd Mat Min Sub Mat Fac Low Low Dat Pro Fac Low Low Zio Pro Fac Was Fac Slots Evolved 10 | . . . . 4 2 . . . . 2 . . . . 2 . . Power . | . . . . . . . . . . . . . . . . . . Propulsion 2 | . . . . 1 . . . . . 1 . . . . . . . Utility 7 | . . . . 2 2 . . . . 1 . . . . 2 . . Weapon 1 | . . . . 1 . . . . . . . . . . . . . Parts Attached 93 | 8 1 2 9 15 13 3 3 . 1 2 2 4 12 . 3 3 12 Power 7 | 1 . . 1 1 1 . . . . . . . 1 . . 1 1 Engine 4 | 1 . . 1 1 . . . . . . . . 1 . . . . Core 2 | . . . . . 1 . . . . . . . . . . . 1 Reactor 1 | . . . . . . . . . . . . . . . . 1 . Propulsion 22 | 2 . . 5 6 . . . . . 1 . 1 3 . 1 1 2 Treads 16 | 2 . . . 6 . . . . . 1 . 1 3 . . 1 2 Leg 3 | . . . 2 . . . . . . . . . . . 1 . . Wheel 3 | . . . 3 . . . . . . . . . . . . . . Hover . | . . . . . . . . . . . . . . . . . . Flight . | . . . . . . . . . . . . . . . . . . Utility 33 | 2 1 1 3 3 7 1 2 . . 1 . 2 4 . 2 . 4 Device 13 | 1 1 1 1 1 2 . 1 . . . . 1 2 . 1 . 1 Storage 3 | 1 . . 2 . . . . . . . . . . . . . . Processor 6 | . . . . . 2 1 . . . 1 . . . . 1 . 1 Hackware 2 | . . . . 1 . . . . . . . . 1 . . . . Protection 9 | . . . . 1 3 . 1 . . . . 1 1 . . . 2 Artifact . | . . . . . . . . . . . . . . . . . . Weapon 31 | 3 . 1 . 5 5 2 1 . 1 . 2 1 4 . . 1 5 Energy Gun 10 | 1 . . . . 4 2 . . . . . 1 1 . . 1 . Energy Cannon 8 | . . 1 . 1 1 . . . . . 2 . 1 . . . 2 Ballistic Gun 4 | 2 . . . 1 . . 1 . . . . . . . . . . Ballistic Cannon 2 | . . . . 2 . . . . . . . . . . . . . Launcher 2 | . . . . 1 . . . . 1 . . . . . . . . Special Weapon 4 | . . . . . . . . . . . . . 1 . . . 3 Impact Weapon . | . . . . . . . . . . . . . . . . . . Slashing Weapon . | . . . . . . . . . . . . . . . . . . Piercing Weapon 1 | . . . . . . . . . . . . . 1 . . . . Special Melee Weapon . | . . . . . . . . . . . . . . . . . . Unidentified Prototypes 8 | . . 1 1 1 2 . . . . . . . 2 . 1 . . Corrupted Parts 3 | . . . . . . 2 . . . . . 1 . . . . . System Corruption 18 | . . . . . . 13 . . . . . 5 . . . . . Parts Lost 46 | . 2 . 3 2 3 7 . . . . . 2 . . . . 27 Power 3 | . . . . . . . . . . . . . . . . . 3 Propulsion 10 | . . . 2 . . 1 . . . . . 1 . . . . 6 Utility 15 | . 1 . 1 . 1 1 . . . . . 1 . . . . 10 Weapon 18 | . 1 . . 2 2 5 . . . . . . . . . . 8 Highest Loss Streak 22 | . 2 . 2 2 2 4 . . . . . 1 . . . . 22 To Critical Strikes 2 | . . . 1 . . . . . . . . . . . . . 1 Average Backups 16 | 3 5 6 10 9 18 17 19 19 17 15 18 18 19 20 18 19 18 Power 1 | . 1 1 . . 1 2 2 2 2 2 2 2 1 1 1 1 1 Propulsion 4 | 1 2 2 3 2 7 6 6 6 6 5 5 5 4 3 3 3 2 Utility 5 | . 1 1 3 5 4 5 5 5 5 4 6 6 7 6 5 6 5 Weapon 5 | . . 1 3 2 4 2 5 6 4 3 5 3 7 8 9 9 8 Tool/Special . | . . . . . . . . . . . . . . . . . . Unused Backups 12 | . . . 5 2 . . . . . 1 . . 2 . . . 2 Power . | . . . . . . . . . . . . . . . . . . Propulsion 3 | . . . 1 2 . . . . . . . . . . . . . Utility 5 | . . . 1 . . . . . . . . . 2 . . . 2 Weapon 4 | . . . 3 . . . . . . 1 . . . . . . . Tool/Special . | . . . . . . . . . . . . . . . . . . Average Slot Usage (%) 93 | . 99 100 90 82 91 94 81 76 99 99 100 99 95 100 99 95 83 Engine 4 | . 14 14 14 9 1 . . . . . . . 4 6 5 1 . Core 2 | . . . . . 5 7 7 7 7 6 6 6 1 . . . . Treads 22 | . 28 28 7 23 23 23 23 23 23 25 26 26 26 26 23 18 15 Wheel 1 | . . . 13 1 . . . . . . . . . . . . . Device 10 | . 13 14 5 7 9 7 8 7 7 13 13 9 15 13 11 11 10 Storage 7 | . 14 14 14 9 7 7 7 7 7 6 6 6 6 6 5 5 4 Processor 12 | . . . . . 6 15 15 15 15 14 20 20 20 20 22 23 17 Hackware 2 | . . . . 5 7 7 7 7 7 4 . . . . . . . Protection 5 | . . . . 1 5 7 5 7 7 6 6 9 3 6 10 11 10 Energy Gun 7 | . . 13 14 . 18 10 2 . 15 13 4 . 1 . . 1 3 Energy Cannon 5 | . . 5 14 3 . . . . . . 8 13 5 13 11 8 5 Ballistic Gun 4 | . 26 9 . 8 . . 1 . 3 6 6 4 3 5 5 5 3 Peak Build Rating 92 | 7 7 16 31 49 50 53 51 51 51 56 60 63 71 64 74 85 92 Average Rating 47 | 6 6 9 15 43 45 47 45 44 50 54 58 61 61 63 70 79 77 On Entrance 44 | . 7 7 11 31 49 50 43 44 51 51 56 60 62 64 64 72 85 Avg Prop Armor Cover (%) 7 | . . . 7 6 . . . . . . . . . . . . . Naked Turns 11 | . . . . . . . . . . . . . . . . . 11 Heaviest Build 96 | 15 15 19 54 62 69 71 62 66 68 67 77 84 79 79 87 94 96 Greatest Support 120 | 40 40 40 40 64 60 64 64 64 64 86 86 86 94 88 94 120 120 Greatest Overweight (x) 4 | 4 . . 2 2 1 1 . 1 1 . . . . . 1 . 2 Average Overweight (x) . | . . . 1 . . . . . 1 . . . . . . . . Largest Inventory Capacity 25 | 8 8 8 25 25 25 20 20 20 20 20 20 20 20 20 20 20 20 Average Capacity 18 | 7 8 8 18 25 20 20 20 20 20 20 20 20 20 20 20 20 19 Most Carried 25 | 5 6 8 25 25 25 20 20 20 18 18 20 20 20 20 20 20 20 Average Carried 16 | 3 5 6 14 24 19 17 19 19 17 15 18 18 19 19 18 19 18 Final Capacity 25 | 8 8 8 25 25 20 20 20 20 20 20 20 20 20 20 20 20 5 Final Carried 25 | 5 4 8 25 25 20 20 20 17 17 18 18 18 20 20 19 20 3 Class Distribution -------------------- 32% | Skirmisher 32% | Mutant 16% | Tank 11% | Assassin 3% | Gunner Dominant Class ---------------- Mutant | -10/Materials Mutant | -10/Mines Mutant | -10/Subcaves Gunner | -8/Materials Tank | -7/Factory Skirmisher | -7/Lower Caves Mutant | -7/Lower Caves Mutant | -7/Data Miner Skirmisher | -6/Proximity Caves Skirmisher | -6/Factory Skirmisher | -6/Lower Caves Skirmisher | -6/Lower Caves Assassin | -6/Zion Skirmisher | -5/Proximity Caves Skirmisher | -5/Factory Tank | -5/Waste Tank | -5/Factory Resources | -11 -10 -10 -10 -8 -7 -7 -7 -7 -6 -6 -6 -6 -6 -5 -5 -5 -5 ----------- Run | Yrd Mat Min Sub Mat Fac Low Low Dat Pro Fac Low Low Zio Pro Fac Was Fac Matter Collected 3106 | 340 176 101 60 274 454 337 153 . 81 . . 454 160 204 90 159 63 Remotely . | . . . . . . . . . . . . . . . . . . Salvage Created 4105 | 141 358 88 317 55 1264 448 132 . 135 . . 329 . 242 216 267 113 Parts 200 | 7 27 4 17 2 61 17 6 . 14 . . 14 . 7 7 3 14 Haulers Intercepted . | . . . . . . . . . . . . . . . . . . Recyclers Shooed 1 | . 1 . . . . . . . . . . . . . . . . Parts Field Recycled . | . . . . . . . . . . . . . . . . . . Retrieved Matter . | . . . . . . . . . . . . . . . . . . Parts Self-Destructed 50 | . . . 8 . . 3 4 . 12 . . 11 . 12 . . . Prevented 18 | . . . . . . 12 4 . . . . . . 2 . . . Parts Restored . | . . . . . . . . . . . . . . . . . . Kills | -11 -10 -10 -10 -8 -7 -7 -7 -7 -6 -6 -6 -6 -6 -5 -5 -5 -5 ------- Run | Yrd Mat Min Sub Mat Fac Low Low Dat Pro Fac Low Low Zio Pro Fac Was Fac Combat Hostiles Destroyed 86 | . 13 1 6 1 22 9 3 . 7 . . 12 . 6 3 1 2 Melee 1 | . . . . . . 1 . . . . . . . . . . . Guns 36 | . 13 1 2 . 14 . 1 . 2 . . 1 . 1 1 . . Cannons 20 | . . . 4 1 4 1 . . . . . 2 . 4 2 1 1 AOE 21 | . . . . . 1 2 2 . 5 . . 9 . 1 . . 1 Classes Destroyed 16 | 2 3 1 2 . 3 . . . 1 . . 1 . . . 1 2 Worker 2 | . . . . . . . . . . . . . . . . . 2 Builder 1 | . . . . . . . . . . . . . . . . . 1 Tunneler 3 | 3 . . . . . . . . . . . . . . . . . Recycler 3 | 1 . 1 . . 1 . . . . . . . . . . . . Drone 3 | . . . . . . . . . 2 . . . . 1 . . . Watcher 2 | . 1 . . 1 . . . . . . . . . . . . . Swarmer 21 | . 8 1 . . 1 . . . 3 . . 8 . . . . . Grunt 35 | . 5 . 1 1 8 6 3 . 2 . . 3 . 3 2 . 1 Duelist 6 | . . . . . 3 2 . . . . . . . 1 . . . Sentry 9 | . . . 1 . 5 . . . . . . 1 . 1 1 . . Hunter 3 | . . . . . 3 . . . . . . . . . . . . Programmer 4 | . . . . . 2 1 . . . . . . . . . . 1 Compactor 1 | . . . . . . . . . . . . . . . . 1 . Subdweller 4 | . . . 4 . . . . . . . . . . . . . . Zionite 1 | . . 1 . . . . . . . . . . . . . . . Samaritan 1 | . . . . . . . . . . . . 1 . . . . . Best Kill Streak 11 | 2 5 1 2 1 6 3 2 . 3 . . 11 . 3 1 1 2 Combat Bots Only 11 | . 4 1 2 1 5 3 2 . 3 . . 11 . 3 1 1 1 Max Kills in Single Turn 3 | 1 1 2 1 1 2 2 1 . 2 . . 3 . 1 1 1 2 Gunslinging 1 | . . . . . 1 . . . . . . . . . . . . Exploded 3 | . . . . . 1 2 1 . 2 . . 3 . 1 . . 1 Melee 1 | . . . . . . 1 . . . . . . . . . . . Uniques/NPCs Destroyed . | . . . . . . . . . . . . . . . . . . Combat | -11 -10 -10 -10 -8 -7 -7 -7 -7 -6 -6 -6 -6 -6 -5 -5 -5 -5 -------- Run | Yrd Mat Min Sub Mat Fac Low Low Dat Pro Fac Low Low Zio Pro Fac Was Fac Hostile Shots Fired 734 | . 59 4 13 7 224 53 18 . 7 . . 58 . 10 23 . 258 Missed 227 | . 13 2 6 1 79 19 15 . 1 . . 21 . 3 6 . 61 Hits 507 | . 46 2 7 6 145 34 3 . 6 . . 37 . 7 17 . 197 Melee 12 | . . . . . . 12 . . . . . . . . . . . Projectile 495 | . 46 2 7 6 145 22 3 . 6 . . 37 . 7 17 . 197 AOE 1 | . . . . . 1 . . . . . . . . . . . . Critical Strikes 19 | . . . 1 . 5 6 . . . . . . . . . . 7 Damage Taken 9569 | . 500 17 236 126 1540 863 44 . 128 . . 568 . 153 344 27 5023 Core 1435 | . 46 10 57 . 181 56 . . . . . 49 . 19 78 . 939 Absorbed by Shields 21 | . . . . . . . . . . . . . . . 21 . . Ignored by Resistances 66 | . . . . . 57 9 . . . . . . . . . . . Regen/Repaired (Parts) 32 | . . . . . . . . . . . . . 32 . . . . Core Remaining (%) 82 | 100 . . 54 100 . . . . 66 . . . . 92 . . . Volleys Fired 302 | 10 37 3 17 12 62 37 7 . 8 1 . 19 7 13 10 23 36 Largest 3 | 2 2 2 2 3 3 3 3 . 3 3 . 3 3 3 3 3 3 Hottest 246 | 40 60 103 103 103 179 166 158 . 158 158 . 183 168 193 193 193 246 Shots Fired 606 | 20 73 6 31 25 142 51 11 . 13 3 . 30 9 27 24 63 78 Gun 329 | 20 73 3 14 8 93 22 6 . 7 3 . 4 8 9 7 24 28 Cannon 220 | . . 3 17 17 49 14 . . . . . 12 1 14 14 39 40 Launcher 47 | . . . . . . 15 5 . 6 . . 14 . 4 3 . . Special 10 | . . . . . . . . . . . . . . . . . 10 Kinetic 220 | 20 68 1 . 15 37 14 2 . 2 1 . 4 1 9 7 24 15 Thermal 175 | . . . . 4 23 7 4 . 5 2 . 12 1 14 14 39 50 Explosive 34 | . . . . . . . . . 6 . . 14 . 4 . . 10 Electromagnetic 177 | . 5 5 31 6 82 30 5 . . . . . 7 . 3 . 3 Robot Hit Streak 18 | 5 7 3 9 4 11 8 4 . 5 1 . 3 . 6 6 18 11 Robot Miss Streak 5 | 2 3 1 2 5 4 5 2 . 2 1 . 2 . 3 2 3 5 Penetration Max . | . . . . . . . . . . . . . . . . . . Secondary Targets 3 | . 2 . . . 1 . . . . . . . . . . . . Max Gunslinging Chain 1 | . 1 . . . 1 . . . . . . . . . . . . Shots Hit Robots 370 | 13 41 3 19 12 98 23 4 . 6 1 . 15 . 14 16 50 55 Core Hits 201 | 4 21 2 12 7 42 14 5 . 13 . . 25 . 14 10 12 20 Critical Kills 2 | . . . . . 2 . . . . . . . . . . . . Critical Parts Destroyed 1 | . 1 . . . . . . . . . . . . . . . . Critical Strikes 8 | . 1 . 1 . 4 . 1 . . . . . . 1 . . . Burn 1 | . . . . . . . 1 . . . . . . . . . . Meltdown 1 | . . . . . 1 . . . . . . . . . . . . Destroy 3 | . 1 . . . 1 . . . . . . . . 1 . . . Blast 2 | . . . . . 2 . . . . . . . . . . . . Corrupt 1 | . . . 1 . . . . . . . . . . . . . . Melee Attacks 5 | . . . . . . . . . . . . . 1 . . . 4 Impact . | . . . . . . . . . . . . . . . . . . Slashing . | . . . . . . . . . . . . . . . . . . Piercing 5 | . . . . . . . . . . . . . 1 . . . 4 Sneak Attacks . | . . . . . . . . . . . . . . . . . . Combat Hostiles . | . . . . . . . . . . . . . . . . . . Follow-up Attacks . | . . . . . . . . . . . . . . . . . . Damage Inflicted 11249 | 175 538 69 268 276 2214 1168 253 . 467 18 . 1101 . 574 593 1216 2319 Guns 3672 | 175 537 22 114 38 1283 348 34 . 38 18 . 66 . 95 56 398 450 Cannons 3717 | . . 47 154 188 841 163 . . . . . 171 . 281 301 818 753 Explosions 3370 | . . . . 50 90 622 217 . 429 . . 864 . 198 199 . 701 Melee 65 | . . . . . . . . . . . . . . . . . 65 Ramming 75 | . 1 . . . . 35 2 . . . . . . . 37 . . Kinetic 2405 | 175 491 11 . 159 535 163 21 . 21 . . 66 . 95 56 398 214 Thermal 3458 | . . . . 75 495 191 107 . 17 18 . 171 . 281 301 818 984 Explosive 2192 | . . . . . . . . . 429 . . 864 . 198 . . 701 Electromagnetic 2704 | . 46 58 268 42 1184 779 123 . . . . . . . 199 . 5 Impact . | . . . . . . . . . . . . . . . . . . Slashing 350 | . . . . . . . . . . . . . . . . . 350 Piercing 65 | . . . . . . . . . . . . . . . . . 65 Highest Corruption 73 | . 1 1 1 . 2 19 19 15 15 . . 5 5 . 1 14 73 Average Corruption 8 | . 1 1 1 . 1 12 16 15 15 . . 5 5 . 1 10 21 Corruption Purged 5 | . . . . . . . 5 . . . . . . . . . . Corruption Blocked . | . . . . . . . . . . . . . . . . . . Effects 156 | . 4 6 9 . 8 34 27 4 12 . . 5 3 . 2 9 33 Message Errors 40 | . 1 1 3 . 2 9 6 2 6 . . 1 1 . 1 2 5 Matter Fused 38 | . 1 2 1 . 2 10 9 . 3 . . . . . . 2 8 Heat Flow Errors 17 | . . 2 . . 2 3 4 . 2 . . 1 . . . . 3 Energy Discharges 22 | . . . 1 . 1 4 5 . . . . 1 . . 1 2 7 Parts Rejected 3 | . . . . . . 1 . . . . . . . . . . 2 Parts Fused 1 | . . . . . . . . 1 . . . . . . . . . Data Loss (minor) 15 | . 1 1 3 . . 2 1 1 . . . 1 1 . . 1 3 Data Loss (major) 6 | . . . 1 . 1 1 1 . . . . 1 1 . . . . Misfires 4 | . . . . . . 1 . . 1 . . . . . . 1 1 Alerts 3 | . . . . . . 2 1 . . . . . . . . . . Misdirections 3 | . . . . . . . . . . . . . . . . . 3 Weapon Failures 4 | . 1 . . . . 1 . . . . . . . . . 1 1 Overload Shots . | . . . . . . . . . . . . . . . . . . Overflow Damage 111 | . . 9 . . 17 16 . . 20 . . 3 . 1 . 3 42 Projectiles 33 | . . 9 . . 17 1 . . . . . 3 . . . 3 . Explosions 78 | . . . . . . 15 . . 20 . . . . 1 . . 42 Melee . | . . . . . . . . . . . . . . . . . . Knockbacks 3 | . . . . . 3 . . . . . . . . . . . . Impact . | . . . . . . . . . . . . . . . . . . Kinetic 2 | . . . . . 2 . . . . . . . . . . . . Secondary 1 | . . . . . 1 . . . . . . . . . . . . Self-Inflicted Damage 293 | . . . . . . 84 23 . 28 . . 116 . 19 23 . . Shots 15 | . . . . . . 6 1 . 1 . . 5 . 1 1 . . Rammed 14 | . 1 . . . 1 9 1 . . . . . . . 2 . . Targets Rammed 15 | . 1 . . . 1 10 1 . . . . . . . 2 . . Kicked . | . . . . . . . . . . . . . . . . . . Crushed 1 | . . . . . . 1 . . . . . . . . . . . Highest Temperature 442 | . 6 191 3 81 242 287 277 . 256 45 . 442 36 115 132 359 434 Average Temperature 107 | . 5 53 3 23 121 108 125 . 94 25 . 153 18 39 56 135 95 Received Heat Transfer 1221 | . 123 . 42 36 330 108 6 . 18 . . 96 . 45 93 9 315 Effects 2 | . . . . . . . . . . . . 1 . . . 1 . Shutdowns 2 | . . . . . . . . . . . . 1 . . . 1 . Siege Activations . | . . . . . . . . . . . . . . . . . . Martial Activations . | . . . . . . . . . . . . . . . . . . Shielding Activations . | . . . . . . . . . . . . . . . . . . Robots Disrupted . | . . . . . . . . . . . . . . . . . . Combat Hostiles . | . . . . . . . . . . . . . . . . . . Robots Corrupted 6 | . . . . . 1 5 . . . . . . . . . . . Combat Hostiles 6 | . . . . . 1 5 . . . . . . . . . . . Parts Fried 14 | . . . . . 10 4 . . . . . . . . . . . Impact Corruptions . | . . . . . . . . . . . . . . . . . . Robots Melted 1 | . . . . . 1 . . . . . . . . . . . . Combat Hostiles 1 | . . . . . 1 . . . . . . . . . . . . Parts Melted 8 | . . . . . 4 . . . . . . . . 1 3 . . Heat Transferred 4523 | . . . . 87 655 311 211 . 37 37 . 222 . 435 498 1318 712 Parts Sabotaged . | . . . . . . . . . . . . . . . . . . Parts Stolen . | . . . . . . . . . . . . . . . . . . Parts Stripped . | . . . . . . . . . . . . . . . . . . Power Chain Reactions 6 | . . . . 1 1 3 1 . . . . . . . . . . Alert | -11 -10 -10 -10 -8 -7 -7 -7 -7 -6 -6 -6 -6 -6 -5 -5 -5 -5 ------- Run | Yrd Mat Min Sub Mat Fac Low Low Dat Pro Fac Low Low Zio Pro Fac Was Fac Maximum Alert Level 2 | . . . . . 1 . . . . . . . . . 2 . 1 Low Security (%) 86 | 100 100 100 . 100 88 . . . . 100 . . . . 1 100 99 Level 1 9 | . . . . . 11 . . . . . . . . . 60 . . Level 2 3 | . . . . . . . . . . . . . . . 38 . . Level 3 . | . . . . . . . . . . . . . . . . . . Level 4 . | . . . . . . . . . . . . . . . . . . Level 5 . | . . . . . . . . . . . . . . . . . . High Security . | . . . . . . . . . . . . . . . . . . Max Security . | . . . . . . . . . . . . . . . . . . Sterilizations 1 | . . . . . 1 . . . . . . . . . . . . Peak Influence 466 | 5 178 63 . 44 240 . . . . 152 . . . . 466 143 205 Initial 466 | . . 63 . . . . . . . 152 . . . . 466 143 46 Average 94 | 1 99 10 . 7 93 . . . . 58 . . . . 349 111 73 Influence Increases 3969 | 20 418 55 40 118 613 295 89 . 135 157 . 270 . 226 799 24 710 Destroy 0b10 Robot/C 1940 | . 260 20 40 60 440 180 80 . 100 . . 240 . 140 200 . 180 Destroy 0b10 Robot/NC 95 | 20 5 5 . 10 5 . . . 10 . . . . 10 10 . 20 Destroy Leader 358 | . 52 . . 14 110 40 . . 10 . . 30 . 20 42 . 40 Allied During Kill 172 | . . . . 3 . . 9 . . . . . . 56 39 . 65 Successful Hack 45 | . 10 . . 6 22 . . . . 7 . . . . . . . Disable Machine 165 | . 15 . . 15 15 . . . . . . . . . 15 . 105 Anti-Garrison Action 150 | . . . . . . . . . . . . . . . . . 150 Destroy Structure 189 | . 1 . . 10 6 . . . . . . . . . 28 24 120 Advance Influence 600 | . . . . . . . . . . 150 . . . . 450 . . Lose Combat Pursuer 255 | . 75 30 . . 15 75 . . 15 . . . . . 15 . 30 Influence Decreases 3764 | 20 256 183 74 117 487 422 36 53 130 162 . 258 12 199 417 366 572 Entered New Map 532 | . . 99 18 . 1 48 . 53 . 3 . . 12 . 11 266 21 Time Decay 2680 | 20 236 84 56 108 456 314 36 . 130 159 . 238 . 179 246 100 318 Search Patrol Dispatched 100 | . . . . . . . . . . . . . . . 100 . . Lost Part 315 | . 20 . . 9 30 60 . . . . . 20 . . . . 176 Lost Ally 137 | . . . . . . . . . . . . . . 20 60 . 57 Squads Dispatched 20 | . 2 1 . 1 6 . . . . 2 . . . . 3 . 5 Investigation 3 | . . 1 . . 2 . . . . . . . . . . . . Extermination 4 | . . . . . 2 . . . . 1 . . . . . . 1 Reinforcement 10 | . 2 . . 1 1 . . . . 1 . . . . 3 . 2 Assault 2 | . . . . . . . . . . . . . . . . . 2 Garrison 1 | . . . . . 1 . . . . . . . . . . . . Intercept . | . . . . . . . . . . . . . . . . . . Searches Triggered 1 | . . . . . . . . . . . . . . . 1 . . Unchained Authorized 2 | . . . . . . . . . . . . . . . 1 . 1 Construction Impeded 1 | . . . . . . . . . . . . . . . 1 . . Haulers Reinforced . | . . . . . . . . . . . . . . . . . . Active Scanning Responses . | . . . . . . . . . . . . . . . . . . Cargo Convoy Interrupts . | . . . . . . . . . . . . . . . . . . Stealth | -11 -10 -10 -10 -8 -7 -7 -7 -7 -6 -6 -6 -6 -6 -5 -5 -5 -5 --------- Run | Yrd Mat Min Sub Mat Fac Low Low Dat Pro Fac Low Low Zio Pro Fac Was Fac Distress Signals 7 | . 4 . . . . . . . . . . . . 1 1 . 1 Communications Jammed . | . . . . . . . . . . . . . . . . . . Distress Signals . | . . . . . . . . . . . . . . . . . . Times Spotted 150 | . 24 3 6 7 24 13 2 . 7 1 . 11 . 9 15 6 22 Peak Tracking Total 7 | . 6 3 2 3 5 3 2 . 4 1 . 4 . 4 5 2 7 Tactical Retreats 12 | . 2 1 . . 1 5 . . 1 . . . . . 1 . 1 Traps | -11 -10 -10 -10 -8 -7 -7 -7 -7 -6 -6 -6 -6 -6 -5 -5 -5 -5 ------- Run | Yrd Mat Min Sub Mat Fac Low Low Dat Pro Fac Low Low Zio Pro Fac Was Fac Traps Triggered 8 | . 1 . 2 1 2 . . . . . . . . . 2 . . Indirectly . | . . . . . . . . . . . . . . . . . . Trap Hack Attempts . | . . . . . . . . . . . . . . . . . . Triggered . | . . . . . . . . . . . . . . . . . . Disarmed . | . . . . . . . . . . . . . . . . . . Reprogrammed . | . . . . . . . . . . . . . . . . . . Reused . | . . . . . . . . . . . . . . . . . . Traps Extracted . | . . . . . . . . . . . . . . . . . . Installed . | . . . . . . . . . . . . . . . . . . Triggered . | . . . . . . . . . . . . . . . . . . Machines | -11 -10 -10 -10 -8 -7 -7 -7 -7 -6 -6 -6 -6 -6 -5 -5 -5 -5 ---------- Run | Yrd Mat Min Sub Mat Fac Low Low Dat Pro Fac Low Low Zio Pro Fac Was Fac Machines Disabled 13 | . 1 . 1 1 1 . . . . . . . . . 1 . 8 Max in Single Turn 1 | . 1 . 1 1 1 . . . . . . . . . . . 1 Garrison Access 5 | . . . . . 4 . . . . . . . . . . . 1 Machines Repaired . | . . . . . . . . . . . . . . . . . . Machines Dismantled . | . . . . . . . . . . . . . . . . . . Machines Sabotaged . | . . . . . . . . . . . . . . . . . . Overloaded Fab Kills . | . . . . . . . . . . . . . . . . . . Hacking | -11 -10 -10 -10 -8 -7 -7 -7 -7 -6 -6 -6 -6 -6 -5 -5 -5 -5 --------- Run | Yrd Mat Min Sub Mat Fac Low Low Dat Pro Fac Low Low Zio Pro Fac Was Fac Machines Accessed 24 | . 2 1 3 2 5 2 2 4 . 2 . 1 . . . . . Terminals 6 | . 1 . . 2 1 . . . . 2 . . . . . . . Fabricators 1 | . . . . . 1 . . . . . . . . . . . . Repair Stations . | . . . . . . . . . . . . . . . . . . Recycling Units 2 | . 1 . . . 1 . . . . . . . . . . . . Scanalyzers 1 | . . . . . 1 . . . . . . . . . . . . Garrison Access 1 | . . . . . 1 . . . . . . . . . . . . Total Hacks 83 | . 5 1 4 10 10 7 7 31 . 7 . 1 . . . . . Successful 70 | . 3 1 4 6 6 7 7 31 . 4 . 1 . . . . . Failed 13 | . 2 . . 4 4 . . . . 3 . . . . . . . Catastrophic 3 | . . . . 1 1 . . . . 1 . . . . . . . Database Lockouts . | . . . . . . . . . . . . . . . . . . Manual 27 | . 4 . . 7 2 . . . . 6 . . 1 . 3 . 4 Terminals 22 | . 3 . . 10 2 . . . . 7 . . . . . . . Fabricators 1 | . . . . . 1 . . . . . . . . . . . . Repair Stations . | . . . . . . . . . . . . . . . . . . Recycling Units 5 | . 2 . . . 3 . . . . . . . . . . . . Scanalyzers 2 | . . . . . 2 . . . . . . . . . . . . Garrison Access 2 | . . . . . 2 . . . . . . . . . . . . Terminal Hacks 58 | . . 1 4 4 1 7 7 31 . 2 . 1 . . . . . Record 24 | . . . 1 . . 6 6 11 . . . . . . . . . Part Schematic 12 | . . . . . . . . 11 . 1 . . . . . . . Robot Schematic 6 | . . . . . . . . 6 . . . . . . . . . Prototype ID Bank 5 | . . . . 2 . . . 3 . . . . . . . . . Open Door 5 | . . 1 1 . . 1 1 . . . . 1 . . . . . Branch Access Points 2 | . . . . 1 1 . . . . . . . . . . . . Terminal Index 1 | . . . . . . . . . . 1 . . . . . . . Zone Layout 1 | . . . . 1 . . . . . . . . . . . . . Proto ID Catalog 1 | . . . 1 . . . . . . . . . . . . . . Release Object 1 | . . . 1 . . . . . . . . . . . . . . Fabricator Hacks . | . . . . . . . . . . . . . . . . . . Repair Station Hacks . | . . . . . . . . . . . . . . . . . . Recycling Unit Hacks 3 | . 1 . . . 2 . . . . . . . . . . . . Process 1 | . . . . . 1 . . . . . . . . . . . . Report Inventory 2 | . 1 . . . 1 . . . . . . . . . . . . Scanalyzer 2 | . . . . . 2 . . . . . . . . . . . . Retrieve Study 2 | . . . . . 2 . . . . . . . . . . . . Garrison Access Hacks . | . . . . . . . . . . . . . . . . . . Unauthorized Hacks 6 | . 2 . . 2 . . . . . 2 . . . . . . . Terminals 5 | . 1 . . 2 . . . . . 2 . . . . . . . Botnet 4 | . 1 . . 2 . . . . . 1 . . . . . . . Skim 1 | . . . . . . . . . . 1 . . . . . . . Fabricators . | . . . . . . . . . . . . . . . . . . Repair Stations . | . . . . . . . . . . . . . . . . . . Recycling Units 1 | . 1 . . . . . . . . . . . . . . . . Reject 1 | . 1 . . . . . . . . . . . . . . . . Scanalyzers . | . . . . . . . . . . . . . . . . . . Garrison Access . | . . . . . . . . . . . . . . . . . . Data Cores Recovered . | . . . . . . . . . . . . . . . . . . Used . | . . . . . . . . . . . . . . . . . . Hacking Detections 10 | . 2 . . 2 5 . . . . 1 . . . . . . . Full Trace Events 1 | . . . . . 1 . . . . . . . . . . . . Feedback Events . | . . . . . . . . . . . . . . . . . . Feedback Blocked . | . . . . . . . . . . . . . . . . . . Robot Schematics Acquired 10 | . . . . . . . . 6 . . . . 4 . . . . Robots Built . | . . . . . . . . . . . . . . . . . . Authchips . | . . . . . . . . . . . . . . . . . . Time . | . . . . . . . . . . . . . . . . . . Total Robot Build Rating . | . . . . . . . . . . . . . . . . . . Part Schematics Acquired 27 | . . . . . . . . 11 . 1 . . 15 . . . . Parts Built . | . . . . . . . . . . . . . . . . . . Authchips . | . . . . . . . . . . . . . . . . . . Time . | . . . . . . . . . . . . . . . . . . Total Part Build Rating . | . . . . . . . . . . . . . . . . . . Part Studies Acquired 2 | . . . . . 2 . . . . . . . . . . . . Parts Repaired . | . . . . . . . . . . . . . . . . . . Time . | . . . . . . . . . . . . . . . . . . Parts Recycled . | . . . . . . . . . . . . . . . . . . Recycled Matter 19 | . . . . . 19 . . . . . . . . . . . . Retrieved Matter . | . . . . . . . . . . . . . . . . . . Retrieved Components . | . . . . . . . . . . . . . . . . . . Parts Scanalyzed . | . . . . . . . . . . . . . . . . . . Part Schematics Acquired . | . . . . . . . . . . . . . . . . . . Parts Damaged . | . . . . . . . . . . . . . . . . . . Bothacking | -11 -10 -10 -10 -8 -7 -7 -7 -7 -6 -6 -6 -6 -6 -5 -5 -5 -5 ------------ Run | Yrd Mat Min Sub Mat Fac Low Low Dat Pro Fac Low Low Zio Pro Fac Was Fac Used RIF Installer . | . . . . . . . . . . . . . . . . . . Robots Hacked . | . . . . . . . . . . . . . . . . . . Non-combat . | . . . . . . . . . . . . . . . . . . Combat . | . . . . . . . . . . . . . . . . . . Robot Hacks Applied . | . . . . . . . . . . . . . . . . . . Relay Couplers Released 1 | . . . . . . . . . . . . . . . . . 1 Machine Destruction 1 | . . . . . . . . . . . . . . . . . 1 Fabnet Peak Effective % . | . . . . . . . . . . . . . . . . . . Robots Rewired . | . . . . . . . . . . . . . . . . . . Allies Hacked . | . . . . . . . . . . . . . . . . . . Hacks Repelled . | . . . . . . . . . . . . . . . . . . Allies | -11 -10 -10 -10 -8 -7 -7 -7 -7 -6 -6 -6 -6 -6 -5 -5 -5 -5 -------- Run | Yrd Mat Min Sub Mat Fac Low Low Dat Pro Fac Low Low Zio Pro Fac Was Fac Total Allies 16 | . . 2 1 . . 3 2 . . . . . 4 . 2 . 2 Largest Group 4 | . . 2 1 1 1 3 2 . . . . . 4 4 3 2 3 Highest-Rated Group 277 | . . 38 19 19 19 93 45 . . . . . 152 152 170 170 277 Highest-Rated Ally 96 | . . 31 19 19 19 31 25 . . . . . 39 39 85 85 96 Zionite Dispatches 1 | . . . . . . . . . . . . . . . 1 . . Heavy 1 | . . . . . . . . . . . . . . . 1 . . Total Orders 1 | . . . . . . . . . . . . . 1 . . . . RETURN 1 | . . . . . . . . . . . . . 1 . . . . Ally Attacks 159 | . . 1 . 13 1 . 1 . . . . . . 19 26 44 54 Total Damage 7422 | . . 21 . 162 17 . 39 . . . . . . 214 1282 3409 2278 Kills 30 | . . . . 3 . . 1 . . . . . . 3 9 5 9 Allies Corrupted 1 | . . . . . . . . . . . . . . . . . 1 Allies Melted . | . . . . . . . . . . . . . . . . . . Intel | -11 -10 -10 -10 -8 -7 -7 -7 -7 -6 -6 -6 -6 -6 -5 -5 -5 -5 ------- Run | Yrd Mat Min Sub Mat Fac Low Low Dat Pro Fac Low Low Zio Pro Fac Was Fac Active Infowar (turns) 9866 | 117 620 568 319 . 1370 860 636 130 314 428 184 500 2079 445 522 205 569 Optics 6275 | . . . . . 318 27 636 130 314 428 184 500 2079 445 522 205 487 Sensors 6783 | . . 18 . . . 753 636 130 314 428 184 500 2079 445 522 205 569 Seismic 1606 | 117 620 550 319 . . . . . . . . . . . . . . Machine Analysis 1884 | . . . . . 1052 832 . . . . . . . . . . . Robot Analysis Total . | . . . . . . . . . . . . . . . . . . Derelict Logs Recovered 5 | . . 1 2 . . . 1 . . . . . 1 . . . . Drone Launches 1 | . . . . . . . . . . . . . 1 . . . . Drone Recoveries 1 | . . . . . . . . . . . . . 1 . . . . Exploration | -11 -10 -10 -10 -8 -7 -7 -7 -7 -6 -6 -6 -6 -6 -5 -5 -5 -5 ------------- Run | Yrd Mat Min Sub Mat Fac Low Low Dat Pro Fac Low Low Zio Pro Fac Was Fac Turns Passed 11544 | 209 629 568 1004 435 1646 860 636 130 314 428 184 500 2079 445 522 205 750 Spaces Moved 6124 | 103 279 338 665 243 585 368 393 84 151 240 120 282 1319 266 232 71 385 Core 60 | 14 . . . . . . . . . . . . . . . . 46 Treads 5479 | 89 279 338 104 219 585 368 393 84 151 240 120 282 1319 266 232 71 339 Legs . | . . . . . . . . . . . . . . . . . . Wheels 585 | . . . 561 24 . . . . . . . . . . . . . Hover . | . . . . . . . . . . . . . . . . . . Flight . | . . . . . . . . . . . . . . . . . . Fastest Speed 50 | 50 160 160 110 130 170 153 153 153 193 151 151 151 145 145 151 155 50 Average Speed 158 | 159 160 160 133 152 201 178 153 153 193 151 151 151 146 145 184 161 150 Slowest Speed 250 | 250 160 160 240 242 210 201 153 193 193 151 151 151 155 151 191 163 197 Overloaded Moves . | . . . . . . . . . . . . . . . . . . Propulsion Burnouts . | . . . . . . . . . . . . . . . . . . Robots Hopped . | . . . . . . . . . . . . . . . . . . Potential Cave-ins . | . . . . . . . . . . . . . . . . . . Cave-ins Triggered . | . . . . . . . . . . . . . . . . . . Exploration Rate (%) 43 | 7 53 72 45 26 20 60 64 73 35 6 29 48 90 50 10 84 15 Regions Visited 17 Branch Regions 10 Pre-discovered Areas 5 | . . 1 . . . 1 . 1 . . . . 2 . . . . Known Exits Taken 10 | . . . . . 1 1 1 1 1 1 1 1 1 1 . . . Unknown Exits Taken 5 | 1 1 1 1 1 . . . . . . . . . . . . . Scrap Searched 17 | . . 2 3 . . 2 1 . . . . 4 3 2 . . . Spaces Dug 7 | . . . . 1 . 6 . . . . . . . . . . . Terrain Destroyed 267 | . . . . 10 6 7 3 . 47 . . 95 . 22 4 4 69 Melee . | . . . . . . . . . . . . . . . . . . Projectile 32 | . . . . 5 1 . . . 1 . . 3 . 2 4 4 12 AOE 235 | . . . . 5 5 7 3 . 46 . . 92 . 20 . . 57 Terrain Rammed . | . . . . . . . . . . . . . . . . . . Walls Destroyed . | . . . . . . . . . . . . . . . . . . Machines Disabled . | . . . . . . . . . . . . . . . . . . Actions | -11 -10 -10 -10 -8 -7 -7 -7 -7 -6 -6 -6 -6 -6 -5 -5 -5 -5 --------- Run | Yrd Mat Min Sub Mat Fac Low Low Dat Pro Fac Low Low Zio Pro Fac Was Fac Total 7447 | 125 387 359 753 288 936 513 420 86 163 304 124 330 1456 301 306 114 482 Wait 697 | . 68 8 25 4 245 74 8 . . 55 1 14 87 16 50 15 27 Move 6108 | 102 278 337 664 242 584 367 392 83 150 239 119 281 1318 265 232 70 385 Hop . | . . . . . . . . . . . . . . . . . . Pick Up 66 | 4 1 4 17 4 10 3 1 . . 4 . 6 9 2 1 . . Fast Attach 50 | 8 . 2 4 8 10 8 1 . . 1 . . 3 . 1 2 2 Attach 59 | . 2 1 4 2 4 6 5 3 1 2 2 3 4 . 3 . 17 Detach 37 | 1 . 1 4 2 7 5 4 . 1 1 2 . 4 . 2 . 3 Swap 46 | . . 1 2 5 6 2 . . 3 . . 3 12 3 4 1 4 Drop 61 | . . 2 16 9 6 1 1 . . 1 . 4 11 2 1 3 4 Fire 302 | 10 37 3 17 12 62 37 7 . 8 1 . 19 7 13 10 23 36 Melee 5 | . . . . . . . . . . . . . 1 . . . 4 Ram . | . . . . . . . . . . . . . . . . . . Kick . | . . . . . . . . . . . . . . . . . . Crush 15 | . 1 . . . 1 10 1 . . . . . . . 2 . . Escape Stasis . | . . . . . . . . . . . . . . . . . . Rewire . | . . . . . . . . . . . . . . . . . . Trap . | . . . . . . . . . . . . . . . . . . Miscellaneous 1 | . . . . . 1 . . . . . . . . . . . . Route ------- -11/Scrapyard -10/Materials -10/Mines (discovered 3 exits: [*Mat] / [*Exi] / *Sub) -10/Subcaves -8/Materials -7/Factory (discovered 2 exits: *Low x2) -7/Lower Caves -7/Lower Caves (discovered 2 exits: *Fac / *Dat) -7/Data Miner -6/Proximity Caves -6/Factory -6/Lower Caves -6/Lower Caves -6/Zion -5/Proximity Caves -5/Factory -5/Waste -5/Factory (discovered 1 exit: *Upp) History --------- Turn | Location | Event 26 | -11/Scrapyard | Discovered new exit (range 15) 210 | -11/Scrapyard | Entered Materials 306 | -10/Materials | Build established: Mutant 687 | -10/Materials | Discovered new exit (range 5) 839 | -10/Materials | Entered Mines 1005 | -10/Mines | Assembled infested the area 1034 | -10/Mines | Met a Derelict shopkeep closing up shop 1145 | -10/Mines | Found a damaged Exp. Sensor Array with a note attached 1148 | -10/Mines | Found Prototype Device 1148 | -10/Mines | Identified Exp. Sensor Array 1157 | -10/Mines | Learned location of Storage (-9) 1187 | -10/Mines | Received a Rocket Launcher from a helpful Derelict 1255 | -10/Mines | Deemed a non-threat by the Exiles lab entrance 1257 | -10/Mines | Discovered new exit (range 5) 1301 | -10/Mines | Found a hidden stash of uninstalled traps 1311 | -10/Mines | Discovered new exit (range 8) 1391 | -10/Mines | Discovered new exit (range 8) 1407 | -10/Mines | Entered Subcaves 1408 | -10/Subcaves | Approached by a straggling Scientist 1411 | -10/Subcaves | Learned Materials emergency access door positions 1416 | -10/Subcaves | Shifting Twisted Machinery released Sub. Laser 1550 | -10/Subcaves | Learned Materials terminal intel 2149 | -10/Subcaves | Visited triangular shrine 2157 | -10/Subcaves | Found Prototype Device 2157 | -10/Subcaves | Identified V3-11A's Pendant 2162 | -10/Subcaves | Befriended Subdweller 2237 | -10/Subcaves | Found SUBCON Basin 2345 | -10/Subcaves | Visited 4L-MR0's lab 2356 | -10/Subcaves | Found Gun Armor 2391 | -10/Subcaves | Discovered new exit (range 13) 2411 | -10/Subcaves | Entered Materials 2411 | -8/Materials | Accompanied by 1 ally 2411 | -8/Materials | Evolved 4 slots: Propulsion x1, Utility x2, Weapon x1 2413 | -8/Materials | Loaded intel: 12 terminal locations 2819 | -8/Materials | Discovered new exit (range 12) 2846 | -8/Materials | Entered Factory 2846 | -7/Factory | Accompanied by 1 ally 2846 | -7/Factory | Evolved 2 slots: Utility x2 2897 | -7/Factory | Identified exit to Lower Caves 2898 | -7/Factory | Released subatomizers from SUBCON Basin 3044 | -7/Factory | Build established: Gunner 3524 | -7/Factory | Build established: Tank 3677 | -7/Factory | Garrison activated, responded to threat 3733 | -7/Factory | Sterilization system engaged 3733 | -7/Factory | Non-combat units ordered to evacuate 3833 | -7/Factory | Combat units ordered to evacuate 4033 | -7/Factory | Ambient heat levels rising (+10) 4183 | -7/Factory | Ambient heat levels rising (+10) 4333 | -7/Factory | Ambient heat levels rising (+10) 4483 | -7/Factory | Ambient heat levels rising (+10) 4492 | -7/Factory | Entered Lower Caves 4544 | -7/Lower Caves | Lost 3 parts (1n2w) 4871 | -7/Lower Caves | System corruption reached 10% 4893 | -7/Lower Caves | Lost 4 parts (1u3w) 4897 | -7/Lower Caves | Build established: Skirmisher 5169 | -7/Lower Caves | Entered an active Warlord outpost 5196 | -7/Lower Caves | A Commander dispatched an escort 5197 | -7/Lower Caves | Learned location of Extension (-6) 5197 | -7/Lower Caves | Learned location of 1 exit from Research 5197 | -7/Lower Caves | Learned Research trap positions 5197 | -7/Lower Caves | Learned Factory stockpile data 5197 | -7/Lower Caves | Learned Extension terminal intel 5306 | -7/Lower Caves | Encountered a Warlord checkpoint 5339 | -7/Lower Caves | Discovered new exit (range 7) 5346 | -7/Lower Caves | Identified exit to Lower Caves 5352 | -7/Lower Caves | Entered another Lower Caves area 5352 | -7/Lower Caves | Accompanied by 3 allies 5353 | -7/Lower Caves | Commander's escort returned to base 5353 | -7/Lower Caves | Commander's escort returned to base 5353 | -7/Lower Caves | Commander's escort returned to base 5460 | -7/Lower Caves | Build established: Mutant 5481 | -7/Lower Caves | Discovered new exit (range 7) 5489 | -7/Lower Caves | Identified exit to Factory 5736 | -7/Lower Caves | Entered an active Warlord outpost 5741 | -7/Lower Caves | A Commander dispatched an escort 5760 | -7/Lower Caves | Learned Armory emergency access door positions 5760 | -7/Lower Caves | Learned Factory security intel 5760 | -7/Lower Caves | Learned Extension security intel 5819 | -7/Lower Caves | Encountered a Warlord checkpoint 5828 | -7/Lower Caves | Learned Factory trap positions 5940 | -7/Lower Caves | Attracted the attention of an 0b10 checkpoint 5976 | -7/Lower Caves | Discovered new exit (range 3) 5980 | -7/Lower Caves | Identified exit to Data Miner 5988 | -7/Lower Caves | Entered Data Miner 5988 | -7/Data Miner | Accompanied by 2 allies 5988 | -7/Data Miner | Discovered new exit (range 6) 5989 | -7/Data Miner | Commander's escort returned to base 5989 | -7/Data Miner | Commander's escort returned to base 5999 | -7/Data Miner | Identified exit to Proximity Caves 6015 | -7/Data Miner | Met Data Miner 6057 | -7/Data Miner | Learned location of Section 7 (-2) 6057 | -7/Data Miner | Acquired the access code to Warlord's prototype stash 6079 | -7/Data Miner | Received God Mode back door access code from Data Miner 6118 | -7/Data Miner | Entered Proximity Caves 6121 | -6/Proximity Caves | Spotter reported a threat 6419 | -6/Proximity Caves | Discovered exit to Factory (range 6) 6422 | -6/Proximity Caves | Build established: Skirmisher 6432 | -6/Proximity Caves | Entered Factory 6432 | -6/Factory | Evolved 2 slots: Propulsion x1, Utility x1 6433 | -6/Factory | Loaded intel: 87 trap records 6496 | -6/Factory | Discovered new exit (range 9) 6505 | -6/Factory | Identified exit to Lower Caves 6860 | -6/Factory | Entered Lower Caves 7032 | -6/Lower Caves | Discovered new exit (range 9) 7043 | -6/Lower Caves | Identified exit to Lower Caves 7044 | -6/Lower Caves | Entered another Lower Caves area 7114 | -6/Lower Caves | Destroyed 11 combat bots 7299 | -6/Lower Caves | Encountered a Warlord checkpoint 7339 | -6/Lower Caves | Attracted the attention of an 0b10 checkpoint 7519 | -6/Lower Caves | Discovered new exit (range 17) 7542 | -6/Lower Caves | Identified exit to Zion 7544 | -6/Lower Caves | Entered Zion 7601 | -6/Zion | Given the Hacking Drone Bay 7601 | -6/Zion | Found Prototype Device 7617 | -6/Zion | Discovered new exit (range 19) 7663 | -6/Zion | Found CR-A16's Pointy Stick 7707 | -6/Zion | System corruption cleaned by Quarantine Array 7923 | -6/Zion | Identified Hacking Drone Bay 7970 | -6/Zion | Build established: Assassin 8054 | -6/Zion | Met Imprinter 8373 | -6/Zion | Given A8's code to call for help 8468 | -6/Zion | Found Prototype Special Weapon 8468 | -6/Zion | Identified RU-N14's Throwing Claymores 8476 | -6/Zion | Found RU-N14's Throwing Claymores 8482 | -6/Zion | Found RU-N14's Throwing Claymores 8484 | -6/Zion | Found RU-N14's Throwing Claymores 9184 | -6/Zion | Imprinted 9187 | -6/Zion | Declared Zion's savior 9326 | -6/Zion | Build established: Skirmisher 9603 | -6/Zion | Identified exit to Proximity Caves 9623 | -6/Zion | Entered Proximity Caves 9623 | -5/Proximity Caves | Accompanied by 4 allies 9667 | -5/Proximity Caves | Spotter reported a threat 9667 | -5/Proximity Caves | Spotter reported a threat 9894 | -5/Proximity Caves | Spotter reported a threat 9926 | -5/Proximity Caves | Attracted the attention of an 0b10 checkpoint 10033 | -5/Proximity Caves | Discovered new exit (range 15) 10053 | -5/Proximity Caves | Identified exit to Factory 10068 | -5/Proximity Caves | Entered Factory 10068 | -5/Factory | Accompanied by 3 allies 10068 | -5/Factory | Evolved 2 slots: Utility x2 10218 | -5/Factory | Lost 3 allies 10242 | -5/Factory | Unchained authorized (DW-4LL) 10311 | -5/Factory | Zion Heavy squad teleported in 10368 | -5/Factory | Search patrols dispatched 10590 | -5/Factory | Sucked down chute 10590 | -5/Factory | Entered Waste 10598 | -5/Waste | Spotted C-40 Crusher 10605 | -5/Waste | EMP discharged 10610 | -5/Waste | 2 allies followed down the chute 10614 | -5/Waste | Allies destroyed C-40 Crusher 10616 | -5/Waste | Spotted C-40 Crusher 10627 | -5/Waste | Allies destroyed C-40 Crusher 10627 | -5/Waste | Spotted C-40 Crusher 10640 | -5/Waste | Destroyed C-40 Crusher 10651 | -5/Waste | Spotted C-40 Crusher 10662 | -5/Waste | Spotted C-40 Crusher 10668 | -5/Waste | Spotted C-40 Crusher 10670 | -5/Waste | Allies destroyed C-40 Crusher 10673 | -5/Waste | Allies destroyed C-40 Crusher 10697 | -5/Waste | Allies destroyed C-40 Crusher 10705 | -5/Waste | EMP discharged 10705 | -5/Waste | System corruption reached 10% 10769 | -5/Waste | Discovered new exit (range 10) 10782 | -5/Waste | Identified exit to Factory 10795 | -5/Waste | Entered Factory 10795 | -5/Factory | Accompanied by 2 allies 10957 | -5/Factory | Build established: Tank 11011 | -5/Factory | Unchained authorized (DW-4LL) 11127 | -5/Factory | Enhanced Grunt warped into view, answering call for help 11128 | -5/Factory | Enhanced Grunt warped into view, answering call for help 11138 | -5/Factory | Discovered new exit (range 8) 11151 | -5/Factory | Identified exit to Upper Caves 11276 | -5/Factory | DW-4LL burst out of a wall 11444 | -5/Factory | DW-4LL burst out of a wall 11455 | -5/Factory | System corruption reached 30% 11494 | -5/Factory | Core integrity fell below 50% 11537 | -5/Factory | Core integrity fell below 20% 11545 | -5/Factory | Destroyed by G-50 Soldier with Heavy Laser Last Messages --------------- Dropped Rocket Launcher. Mic. Nuclear Core destroyed. System corrupted by crushing effect (+5). The unstable cave ceiling collapses. JXMGL2N3,CMG WQI9J9X UCUKQ7IXI7HITD#B Knocked back. Manufacturing Mainframe disabled. Hacking Drone Bay destroyed. System corrupted by crushing effect (+3). Knocked back. ALERT: Garrison Access compromised, dispatching multiple assault carriers. Garrison Access disabled. Relay Coupler [NC] tumbles out of Garrison Access. Adv. EMP Blaster destroyed. The unstable cave ceiling collapses. Knocked back. Critical hit (Burn: +37). RU-N14's Throwing Claymores expended. Destroyed Lgt. Deuterium Engine. Destroyed Imp. Hover Unit. Map ----- +----------------------------------------------------+ | ????????????????????? #??????????????????????? | | ????????????????????? +??????????????????????? | | ????????????????????? #??????????????????????? | | ?????????+########### #??????????????????????? | | ?????????? # #??????????????????????? | | ??????????? " #??????????????????????? | | ???????????""" #??????????????????????? | | ???????????""" #??????????????????????? | | ???????# """" #??????????????????????? | | ???????# """" #??????????????????????? | | ???????# g #??????????????????????? | | ???????# """" # #??????????????????????? | | ???????# """ # g #??????????????????????? | | ???????# // "" " # #??????????????????????? | | ???????# / """" # #??????????????????????? | | ???????# # #??????????????????????? | | ??????????#######+### +??????????????????????? | | ????????????????# #?# #??????????????????????? | | ????????????????# #?# #??????????????????????? | | ????????????????# #?# #??????????????????????? | | ???????##########+### #??????????????????????? | | ???????# # #??????????????????????? | | ???????# # #??????????????????????? | | ???????# """" # #??????????????????????? | | ?????### """" ! # #??????????????????????? | | ?????# """ @#??????????????????????? | | ??#### #??????????????????????? | | ### g #??????????????????????? | | # g ?????????????????????? | | # w ????????????????????? | | ?# # " " ???????????????????? | | ?# """" # ?????????????????? | | ?## # ????????????????? | | #### ""+########### ! ???????????????? | | ! ?????????????? | | !!! # ????????????? | | % ] """"^""""" """"" ##########?????????????? | | " """ """""?""""" #??????????????????????? | | "" ^ """?????? #??????????????????????? | | ] !% ^^ ??????? ???????????????????????? | | !! """" """???????? ???????????????????????? | | """"" """???????? ???????????????????????? | | """ "??????????????????????????????????? | | ? ???????????????????????????????????? | | % ?? ??????????????????????????????????? | | ?????????????????????????????????????? | | ########????????????????????????????????????? | | #???????????????????????????????????????????? | | #???????????????????????????????????????????? | | #???????????????????????????????????????????? | +----------------------------------------------------+ Best States ------------- Heat Dissipation 71 Energy Generation 21 Energy Capacity 325 Matter Stores 300 Matter Capacity 300 Sight Range 22 Robot Scan Range 20 Terrain Scan Density 10 Armor Coverage 675 Resistance: EM 15 Evasion (%) 50 Targeting Accuracy 8 Core Analysis 6 Recoil Reduction 4 Offensive Hacking 11 Item Schematics ----------------- Combat Drone Bay | -7/Data Miner | Free Lgt. Regenerative Plating | -7/Data Miner | Free Cld. Aerolev Unit | -7/Data Miner | Free Exp. Targeting Computer | -7/Data Miner | Free Scatter Rocket Array | -7/Data Miner | Free Thunder Leg | -7/Data Miner | Free Imp. Coolant Injector | -7/Data Miner | Free Adv. Plasma Cannon | -7/Data Miner | Free Lyr. Heavy Armor Plating | -7/Data Miner | Free Point Defense System | -7/Data Miner | Free Imp. Cloaking Device | -7/Data Miner | Free Weapon Mount | -6/Factory | Hacked Imp. Shock Absorption System | -6/Zion | Archive Enh. Optical Array | -6/Zion | Archive Railgun | -6/Zion | Archive Hvy. Pick | -6/Zion | Archive Imp. Launcher Guidance Computer | -6/Zion | Archive Imp. Proton Missile Launcher | -6/Zion | Archive Variable Charge Gun | -6/Zion | Archive Hvy. Plasma Cannon | -6/Zion | Archive Imp. Focal Shield | -6/Zion | Archive Imp. Trap Scanner | -6/Zion | Archive Adv. Thermal Shield | -6/Zion | Archive Thermal Shield | -6/Zion | Archive Imp. Thermal Shield | -6/Zion | Archive Imp. Cryofiber Web | -6/Zion | Archive Imp. Arc Projector | -6/Zion | Archive Robot Schematics ------------------ S-27 Virus | -7/Data Miner | Free H-55 Commando | -7/Data Miner | Free M-28 Smith | -7/Data Miner | Free M-22 Extractor | -7/Data Miner | Free I-47 Archangel | -7/Data Miner | Free G-50 Soldier | -7/Data Miner | Free T-07 Excavator | -6/Zion | Archive R-06 Scavenger | -6/Zion | Archive K-01 Serf | -6/Zion | Archive L-61 Swordsman | -6/Zion | Archive Fabricated ------------ Nothing Repaired ---------- Nothing Studied --------- Arm. Treads | -7/Factory | Hacked Adv. Treads | -7/Factory | Hacked Alien Tech Used ----------------- None Achievements -------------- Deductive Reasoning Hydra Into The Furnace Look Less Dangerous Next Time Pestilence The Better Part Of Valor Challenges ------------ None Game ------ Seed TiamatStrikeMonowheel Manual? 0 Play Time 01:35:34 Cumulative 369.0 hours Start 2025.12.04 @ 09:21:04 End 2025.12.04 @ 10:55:14 Sessions 1 Manual Loads 0 Difficulty Rogue Special Mode None Game No. 363 Rogue 363 Adventurer 0 Explorer 0 Win Type - Total 26 Types 19/0/4/3/0/0/0/0/0/0 Lore% 76 Gallery% 77 Achievement% 54 Wizard Run 0 Options --------- Layout 0 ASCII 0 Keyboard 1 Movement Numpad Keybinds 0 Fullscreen 1 Font 18/SmallcapsGlow Map View 76x50 Zoom Use 0% Tactical HUD 1 Map Filters NONE Filters NONE Steam 1 RUN: 0ac0fde1-a60c-4b22-bd31-d86e9e8c9868